fUSD/lending_fUSD_20260404
["ID","MTS","AMOUNT","RATE_DAILY","PERIOD"]
[419660303,1775261454161,-11763.99,0.00041095,120]
[419660304,1775261454171,-500.0,0.00041095,120]
[419660305,1775261454180,-500.0,0.00041095,120]
[419660306,1775261454190,-500.0,0.00041095,120]
[419660307,1775261454200,-500.0,0.00041095,120]
[419660308,1775261454210,-500.0,0.00041095,120]
[419660309,1775261454220,-500.0,0.00041095,120]
[419660310,1775261454229,-500.0,0.00041095,120]
[419660311,1775261454239,-500.0,0.00041095,120]
[419660312,1775261454249,-500.0,0.00041095,120]
[419660313,1775261454259,-500.0,0.00041095,120]
[419660314,1775261454269,-500.0,0.00041095,120]
[419660315,1775261454279,-500.0,0.00041095,120]
[419660316,1775261454290,-756.96,0.00041095,120]
[419660317,1775261454301,-500.0,0.00041095,120]
[419660318,1775261454310,-500.0,0.00041095,120]
[419660319,1775261454321,-500.0,0.00041095,120]
[419660320,1775261454331,-3887.73,0.00041095,30]
[419660321,1775261454340,-500.0,0.00041095,120]
[419660322,1775261454351,-500.0,0.00041095,120]
[419660323,1775261454361,-500.0,0.00041095,120]
[419660324,1775261454371,-500.0,0.00041095,120]
[419660325,1775261454381,-500.0,0.00041095,120]
[419660326,1775261454391,-500.0,0.00041095,120]
[419660327,1775261454402,-500.0,0.00041095,120]
[419660328,1775261454412,-500.0,0.00041095,120]
[419660329,1775261454422,-4606.89,0.00041095,120]
[419660330,1775261454433,-500.0,0.00041095,120]
[419660331,1775261454443,-1096.17,0.00041095,120]
[419660332,1775261454452,-777.93,0.00041095,120]
[419660333,1775261454462,-500.0,0.00041095,120]
[419660334,1775261454471,-500.0,0.00041095,120]
[419660335,1775261454481,-500.0,0.00041095,120]
[419660336,1775261454490,-500.0,0.00041095,120]
[419660337,1775261454500,-733.75,0.00041095,120]
[419660338,1775261454510,-500.0,0.00041095,120]
[419660339,1775261454519,-500.0,0.00041095,120]
[419660340,1775261454529,-500.0,0.00041095,120]
[419660341,1775261454539,-500.0,0.00041095,120]
[419660342,1775261454548,-500.0,0.00041095,120]
[419660343,1775261454558,-500.0,0.00041095,120]
[419660344,1775261454567,-1026.36,0.00041095,120]
[419660345,1775261454577,-500.0,0.00041095,120]
[419660346,1775261454587,-500.0,0.00041095,120]
[419660347,1775261454597,-963.53,0.00041095,120]
[419660348,1775261454607,-3378.3,0.00041095,120]
[419660349,1775261454617,-500.0,0.00041095,120]
[419660350,1775261454627,-500.0,0.00041095,120]
[419660351,1775261454637,-918.08,0.00041095,120]
[419660352,1775261454647,-500.0,0.00041095,120]
[419660353,1775261454657,-538.28,0.00041095,120]
[419660354,1775261454667,-1696.98,0.00041095,120]
[419660355,1775261454676,-1130.85,0.00041095,120]
[419660356,1775261454685,-500.0,0.00041095,120]
[419660357,1775261454695,-500.0,0.00041095,120]
[419660358,1775261454705,-500.0,0.00041095,120]
[419660359,1775261454716,-500.0,0.00041095,90]
[419660360,1775261454727,-2000.0,0.00041095,30]
[419660361,1775261454739,-560.99,0.00041095,120]
[419660362,1775261454750,-500.0,0.00041095,120]
[419660363,1775261454761,-500.0,0.00041095,120]
[419660364,1775261454772,-500.0,0.00041095,120]
[419660365,1775261454782,-1060.62,0.00041095,120]
[419660366,1775261454794,-900.82,0.00041095,120]
[419660367,1775261454806,-500.0,0.00041095,120]
[419660368,1775261454817,-500.0,0.00041095,120]
[419660369,1775261454828,-605.58,0.00041095,120]
[419660370,1775261454838,-1243.09,0.00041095,120]
[419660371,1775261454848,-727.44,0.00041095,120]
[419660372,1775261454857,-500.0,0.00041095,120]
[419660373,1775261454868,-500.0,0.00041095,120]
[419660374,1775261454880,-227.98946449,0.00041095,120]
[419660375,1775261454890,-500.0,0.00041095,120]
[419660376,1775261454900,-500.9,0.00041095,120]
[419660377,1775261454911,-500.0,0.00041095,120]
[419660378,1775261454922,-500.0,0.00041095,120]
[419660379,1775261454932,-500.0,0.00041095,120]
[419660380,1775261454942,-500.0,0.00041095,120]
[419660381,1775261454952,-1445.28,0.00041095,120]
[419660382,1775261454963,-500.0,0.00041095,120]
[419660383,1775261454973,-500.0,0.00041095,90]
[419660384,1775261454983,-584.12,0.00041095,120]
[419660385,1775261454995,-688.38,0.00041095,120]
[419660386,1775261455006,-1790.6,0.00041095,120]
[419660387,1775261455016,-831.16,0.00041095,120]
[419660388,1775261455026,-779.86,0.00041095,120]
[419660389,1775261455036,-500.0,0.00041095,120]
[419660390,1775261455046,-500.0,0.00041095,120]
[419660391,1775261455056,-500.0,0.00041095,120]
[419660392,1775261455066,-500.0,0.00041095,120]
[419660393,1775261455076,-500.0,0.00041095,120]
[419660394,1775261455086,-252.88997366,0.00041095,120]
[419660395,1775261455096,-500.0,0.00041095,120]
[419660396,1775261455106,-500.0,0.00041095,120]
[419660397,1775261455117,-500.0,0.00041095,120]
[419660398,1775261455129,-500.0,0.00041095,120]
[419660399,1775261455139,-500.0,0.00041095,120]
[419660400,1775261455150,-1094.8,0.00041095,120]
[419660401,1775261455159,-551.17,0.00041095,120]
[419660402,1775261455169,-500.0,0.00041095,120]
[419660403,1775261455179,-500.0,0.00041095,120]
[419660404,1775261455188,-500.0,0.00041095,120]
[419660405,1775261455198,-500.0,0.00041095,120]
[419660406,1775261455208,-795.28,0.00041095,120]
[419660407,1775261455218,-500.0,0.00041095,2]
[419660408,1775261455228,-1997.97,0.00041095,120]
[419660409,1775261455238,-1492.17,0.00041095,120]
[419660410,1775261455248,-500.0,0.00041095,120]
[419660411,1775261455258,-500.0,0.00041095,120]
[419660412,1775261455268,-500.0,0.00041095,120]
[419660413,1775261455278,-413.09939999,0.00041095,120]
[419660414,1775261455287,-500.0,0.00041095,120]
[419660415,1775261455296,-1240.0,0.00041096,120]
[419660416,1775261455306,-150.0,0.00041096,30]
[419660417,1775261455316,-150.0,0.00041096,30]
[419660418,1775261455326,-150.0,0.00041096,30]
[419660419,1775261455335,-150.0,0.00041096,30]
[419660420,1775261455345,-150.0,0.00041096,30]
[419660421,1775261455355,-150.0,0.00041096,10]
[419660422,1775261455365,-500.0,0.00041096,120]
[419660423,1775261455375,-500.0,0.00041096,120]
[419660424,1775261455384,-281.0,0.00041096,120]
[419660425,1775261455394,-151.0,0.00041097,14]
[419660426,1775261455403,-151.0,0.00041097,14]
[419660427,1775261455412,-151.0,0.00041097,14]
[419660428,1775261455422,-798.96248601,0.000411,31]
[419660429,1775261455432,-2145818.09777694,0.000411,120]
[419660430,1775261455443,-1807306.29897216,0.000411,120]
[419660431,1775261456193,-13183.75811901,0.000411,120]
[419660432,1775261456325,-488.32457904,0.00011493,2]
[419660433,1775261456335,-151.0,0.00011493,2]
[419660434,1775261456345,-4700.97616714,0.00032409,2]
[419660435,1775261456512,318.68165945,0.00010941,2]
[419660436,1775261456823,-2619.9222051,0.00032409,2]
[419660437,1775261456833,-500.0,0.00041095,60]
[419660438,1775261456843,-500.0,0.00041095,120]
[419660439,1775261456852,-500.0,0.00041095,120]
[419660440,1775261456862,-431.42818604,0.00041095,120]
[419660441,1775261456983,-68.57181396,0.00041095,120]
[419660442,1775261456992,-4981.22407334,0.000411,120]
[419660443,1775261457003,-8983.80416958,0.000411,120]
[419660444,1775261457546,-418.680849,0.00041095,120]
[419660445,1775261458891,-81.319151,0.00041095,120]
[419660446,1775261458901,-500.0,0.00041095,120]
[419660447,1775261458911,-454.0,0.00041095,60]
[419660448,1775261458921,-500.0,0.00041095,120]
[419660449,1775261458931,-8426.19292449,0.000411,120]
[419660450,1775261465634,5000.01,0.00010931,2]
[419660451,1775261465660,5000.01,0.00010931,2]
[419660452,1775261465686,10000.01,0.00010931,2]
[419660453,1775261465713,10000.01,0.00010931,2]
[419660454,1775261465740,10000.01,0.00010931,2]
[419660455,1775261465782,10000.01,0.00010931,2]
[419660456,1775261465811,10000.01,0.00010931,2]
[419660457,1775261465840,10000.01,0.00010931,2]
[419660458,1775261469573,-2361.082948,7.945e-05,2]
[419660459,1775261469665,-4722.165896,7.945e-05,2]
[419660460,1775261469814,-555.678208,7.945e-05,2]
[419660461,1775261477618,3589.92471501,0.00010831,2]
[419660462,1775261489099,1410.08528499,0.00010712,2]
[419660463,1775261489121,1999.26071501,0.00010712,2]
[419660464,1775261489152,172.879,0.00010712,2]
[419660465,1775261505747,2827.87028499,0.00010876,2]
[419660466,1775261505769,5000.01,0.00010876,2]
[419660467,1775261505793,4714.66727101,0.00010876,2]
[419660470,1775261556174,246.6712648,0.00010898,2]
[419660471,1775261573638,395.70515486,0.00010831,2]
[419660472,1775261591821,1168.14215295,0.00010831,2]
[419660473,1775261598265,1203.20159956,0.00010831,2]
[419660475,1775261639655,2068.58815796,0.00010831,2]
[419660476,1775261642485,7931.42184204,0.00010904,2]
[419660477,1775261642511,5572.57815796,0.00010904,2]
[419660478,1775261643271,4427.43184204,0.00010831,2]
[419660479,1775261643296,945.62417478,0.00010831,2]
[419660480,1775261669861,500.0,0.00010828,2]
[419660482,1775261670897,4500.01,0.000109,2]
[419660483,1775261670920,990.66377918,0.000109,2]
[419660484,1775261687524,516.178659,0.0001083,2]
[419660485,1775261703884,263.80343656,0.00010831,2]
[419660486,1775261712052,2433.2390075,0.00010831,2]
[419660487,1775261729391,802.1343997,0.00010831,2]
[419660488,1775261729452,415.43566466,0.0001,2]
[419660490,1775261752761,406.16288485,0.00010831,2]
[419660491,1775261768547,943.03804329,0.00010831,2]
[419660492,1775261768571,1258.87031943,0.00010831,2]
[419660494,1775261831042,217.01161942,0.00010831,2]
[419660495,1775261833521,1622.15933834,0.00010831,2]
[419660496,1775261839243,175.86895772,0.00010831,2]
[419660497,1775261859629,534.75626646,0.00010831,2]
[419660498,1775261883236,1191.34349863,0.00010831,2]
[419660499,1775261883260,5000.01,0.00010831,2]
[419660500,1775261883285,5000.01,0.00010831,2]
[419660501,1775261883308,5000.01,0.00010831,2]
[419660502,1775261883331,1398.08790137,0.00010831,2]
[419660503,1775261889609,2500.0,0.00010831,2]
[419660504,1775261901646,1101.92209863,0.0001083,2]
[419660505,1775261901668,291.50230137,0.0001083,2]
[419660507,1775261951281,4708.50769863,0.000109,2]
[419660508,1775261951304,95.83185817,0.000109,2]
[419660509,1775261954911,-217.01161941,0.00010831,2]
[419660510,1775261954949,-1081.4395589,0.00010831,2]
[419660511,1775261966696,175.8689577,0.00010831,2]
[419660517,1775262248907,192.2684,0.000109,120]
[419660518,1775262436117,-300.0,0.0001044,2]
[419660519,1775262436140,-300.0,0.0001044,2]
[419660520,1775262436162,-401.30948608,0.00010441,2]
[419660521,1775262551085,-260.25,0.00010143,2]
[419660522,1775262551109,-500.0,0.0001017,2]
[419660523,1775262551131,-226.192912,0.0001044,2]
[419660524,1775262552143,-253.807088,0.0001044,2]
[419660525,1775262552165,-300.0,0.0001044,2]
[419660526,1775262552187,-666.94863,0.00010441,2]
[419660527,1775262555160,-3931.74188392,0.00010441,2]
[419660528,1775262555183,-250.0,0.00010441,2]
[419660529,1775262555204,-3025.13764208,0.00010441,2]
[419660530,1775262556088,-11219.45548607,0.00010441,2]
[419660531,1775262556109,-1747.04678425,0.00010441,2]
[419660532,1775262569130,-105.37321575,0.00010441,2]
[419660533,1775262569156,-298450.4819,0.00010824,2]
[419660534,1775262569177,-2500.0,0.0001083,2]
[419660535,1775262569198,-153.64087258,0.0001083,2]
[419660536,1775262569218,-300.0,0.0001083,2]
[419660537,1775262569239,-1200.0,0.0001083,2]
[419660538,1775262569260,-609.41607738,0.00010831,2]
[419660539,1775262569280,-356.50417764,0.00010831,2]
[419660540,1775262569300,-175.8689577,0.00010831,2]
[419660541,1775262569321,-4203.7971122,0.000109,2]
[419660542,1775262569342,-150.0,0.0001092,2]
[419660543,1775262569361,-651.65420089,0.00010921,2]
[419660544,1775262569382,-651.65420089,0.00010921,2]
[419660545,1775262569401,-1000.0,0.00010923,2]
[419660546,1775262569422,-151.0,0.00010924,2]
[419660547,1775262569443,-151.0,0.00010924,2]
[419660548,1775262569464,-151.0,0.00010924,2]
[419660549,1775262569484,-217.49159281,0.00010924,2]
[419660550,1775262569503,-10401.29,0.00010924,2]
[419660551,1775262569524,-9999.99,0.00010924,2]
[419660552,1775262569544,-150.99,0.00010924,2]
[419660553,1775262569563,-299.99,0.00010924,2]
[419660554,1775262569582,-4092.56,0.00010924,2]
[419660555,1775262569603,-9999.99,0.00010924,2]
[419660556,1775262569623,-1832.92475528,0.00010928,2]
[419660565,1775262631492,-1049.24108504,0.00010821,2]
[419660566,1775262631504,-681.2439423,0.00010821,2]
[419660567,1775262631515,-1677440.36833449,0.00010821,2]
[419660568,1775262631526,-119436.25798645,0.00010821,2]
[419660569,1775262631537,-67849.51745591,0.00010821,2]
[419660570,1775262631548,-219522.37603145,0.00010821,2]
[419660571,1775262631559,-1254.41808677,0.00010821,2]
[419660572,1775262631570,-738.86152533,0.00010821,2]
[419660573,1775262631581,-1711.23017621,0.00010821,2]
[419660574,1775262631617,-8067.00672546,0.00010821,2]
[419660575,1775262631669,-8703.15238919,0.00010821,2]
[419660576,1775262631680,-1085.84254698,0.00010821,2]
[419660577,1775262631732,-353.98356,0.00010821,2]
[419660578,1775262631743,-67398.15409254,0.00010821,2]
[419660579,1775262631763,-273.719,0.00010821,2]
[419660580,1775262631785,-400.0,0.00010821,2]
[419660581,1775262631796,-702.77308168,0.00010821,2]
[419660582,1775262631807,-120124.43453043,0.00010821,2]
[419660583,1775262631817,-5754.48055638,0.00010821,2]
[419660596,1775262637769,-14451.33660621,0.00010821,2]
[419660597,1775262637823,-2159.41324796,0.00010821,2]
[419660598,1775262637837,-38705.1093591,0.00010821,2]
[419660629,1775262639832,-142137.07968012,0.00010821,2]
[419660630,1775262639842,-720.95970592,0.00010831,2]
[419660631,1775262639852,-308.0,0.00010831,2]
[419660632,1775262639863,-217.21806696,0.00010921,2]
[419660633,1775262639873,-1200.0,0.00010927,2]
[419660634,1775262639883,-300.0,0.00010927,2]
[419660635,1775262639894,-300.0,0.00010927,2]
[419660636,1775262639905,-8167.06524472,0.00010928,2]
[419660637,1775262639915,-150.99,0.00010928,2]
[419660638,1775262639925,-999.99,0.00010928,2]
[419660639,1775262639936,-151.0,0.00010928,2]
[419660640,1775262639946,-151.0,0.00010928,2]
[419660641,1775262639956,-150.0,0.00010928,2]
[419660642,1775262639966,-415.31553778,0.00010928,2]
[419660643,1775262639981,-24409.9203819,0.00010929,2]
[419660644,1775262639993,-500.0,0.0001093,2]
[419660645,1775262640004,-1871.06752635,0.0001093,2]
[419660646,1775262640017,-500.0,0.0001093,2]
[419660647,1775262640028,-305.64631244,0.0001093,2]
[419660648,1775262640039,-494.78538258,0.0001093,2]
[419660649,1775262640049,-382.20932414,0.0001093,2]
[419660650,1775262640060,-500.0,0.0001093,2]
[419660651,1775262640070,-500.0,0.0001093,2]
[419660652,1775262640081,-491.18923897,0.0001093,2]
[419660653,1775262640093,-500.0,0.0001093,2]
[419660654,1775262640104,-500.0,0.0001093,2]
[419660655,1775262640117,-500.0,0.0001093,2]
[419660656,1775262640129,-500.0,0.0001093,2]
[419660657,1775262640140,-500.0,0.0001093,2]
[419660658,1775262640151,-500.0,0.0001093,2]
[419660659,1775262640162,-500.0,0.0001093,2]
[419660660,1775262640173,-500.0,0.0001093,2]
[419660661,1775262640184,-500.0,0.0001093,2]
[419660662,1775262640194,-500.0,0.0001093,2]
[419660663,1775262640207,-328.98011863,0.0001093,2]
[419660664,1775262640218,-500.0,0.0001093,2]
[419660665,1775262640229,-500.0,0.0001093,2]
[419660666,1775262640240,-423.44072149,0.0001093,2]
[419660667,1775262640252,-500.0,0.0001093,2]
[419660668,1775262640262,-500.0,0.0001093,2]
[419660669,1775262640273,-500.0,0.0001093,2]
[419660670,1775262640285,-500.0,0.0001093,2]
[419660671,1775262640299,-500.0,0.0001093,2]
[419660672,1775262640311,-500.0,0.0001093,2]
[419660673,1775262640322,-500.0,0.0001093,2]
[419660674,1775262640334,-500.0,0.0001093,2]
[419660675,1775262640346,-500.0,0.0001093,2]
[419660676,1775262640357,-501.86070028,0.0001093,2]
[419660677,1775262640368,-500.0,0.0001093,2]
[419660678,1775262640379,-500.0,0.0001093,2]
[419660679,1775262640391,-250.12311503,0.0001093,2]
[419660680,1775262640402,-500.0,0.0001093,2]
[419660681,1775262640412,-500.0,0.0001093,2]
[419660682,1775262640423,-615.09366291,0.0001093,2]
[419660683,1775262640434,-500.0,0.0001093,2]
[419660684,1775262640445,-500.0,0.0001093,2]
[419660685,1775262640455,-500.0,0.0001093,2]
[419660686,1775262640467,-416.06434921,0.0001093,2]
[419660687,1775262640478,-500.0,0.0001093,2]
[419660688,1775262640490,-500.0,0.0001093,2]
[419660689,1775262640503,-500.0,0.0001093,2]
[419660690,1775262640515,-500.0,0.0001093,2]
[419660691,1775262640525,-500.0,0.0001093,2]
[419660692,1775262640536,-500.0,0.0001093,2]
[419660693,1775262640546,-301.82389204,0.0001093,2]
[419660694,1775262640557,-500.0,0.0001093,2]
[419660695,1775262640567,-500.0,0.0001093,2]
[419660696,1775262640578,-500.0,0.0001093,2]
[419660697,1775262640588,-500.0,0.0001093,2]
[419660698,1775262640599,-500.0,0.0001093,2]
[419660699,1775262640609,-500.0,0.0001093,2]
[419660700,1775262640619,-500.0,0.0001093,2]
[419660701,1775262640630,-500.0,0.0001093,2]
[419660702,1775262640641,-500.0,0.0001093,2]
[419660703,1775262640651,-500.0,0.0001093,2]
[419660704,1775262640663,-591.23576479,0.0001093,2]
[419660705,1775262640674,-500.0,0.0001093,2]
[419660706,1775262640684,-500.0,0.0001093,2]
[419660707,1775262640695,-500.0,0.0001093,2]
[419660708,1775262640706,-500.0,0.0001093,2]
[419660709,1775262640718,-500.0,0.0001093,2]
[419660710,1775262640729,-500.0,0.0001093,2]
[419660711,1775262640740,-479.44155759,0.0001093,2]
[419660712,1775262640750,-500.0,0.0001093,2]
[419660713,1775262640761,-500.0,0.0001093,2]
[419660714,1775262640771,-3239.18304069,0.0001093,2]
[419660715,1775262640781,-3239.18304069,0.0001093,2]
[419660716,1775262640792,-3239.18304069,0.0001093,2]
[419660717,1775262640803,-3239.18304069,0.0001093,2]
[419660718,1775262640814,-3239.18304069,0.0001093,2]
[419660719,1775262640826,-3239.18304069,0.0001093,2]
[419660720,1775262640836,-3239.18304069,0.0001093,2]
[419660721,1775262640847,-3239.18304069,0.0001093,2]
[419660722,1775262640856,-3239.18304069,0.0001093,2]
[419660723,1775262640867,-3239.18304069,0.0001093,2]
[419660724,1775262640877,-3239.18304069,0.0001093,2]
[419660725,1775262640888,-3239.18304069,0.0001093,2]
[419660726,1775262640900,-3239.18304069,0.0001093,2]
[419660727,1775262640910,-3239.18304069,0.0001093,2]
[419660728,1775262640920,-3239.18304069,0.0001093,2]
[419660729,1775262640930,-3239.18304069,0.0001093,2]
[419660730,1775262640941,-3239.18304069,0.0001093,2]
[419660731,1775262640961,-3239.18304069,0.0001093,2]
[419660732,1775262640974,-3239.18304069,0.0001093,2]
[419660733,1775262640985,-3239.18304069,0.0001093,2]
[419660734,1775262640996,-3239.18304069,0.0001093,2]
[419660735,1775262641007,-3239.18304069,0.0001093,2]
[419660736,1775262641018,-3239.18304069,0.0001093,2]
[419660737,1775262641029,-3239.18304069,0.0001093,2]
[419660738,1775262641041,-3239.18304069,0.0001093,2]
[419660739,1775262641424,-3239.18304069,0.0001093,2]
[419660740,1775262641434,-3239.18304069,0.0001093,2]
[419660741,1775262641443,-3239.18304069,0.0001093,2]
[419660742,1775262641452,-3239.18304069,0.0001093,2]
[419660743,1775262641461,-3239.18304069,0.0001093,2]
[419660744,1775262641471,-3239.18304069,0.0001093,2]
[419660745,1775262641481,-3239.18304069,0.0001093,2]
[419660746,1775262641490,-3239.18304069,0.0001093,2]
[419660747,1775262641499,-3239.18304069,0.0001093,2]
[419660748,1775262641508,-3239.18304069,0.0001093,2]
[419660749,1775262641517,-3239.18304069,0.0001093,2]
[419660750,1775262641526,-3239.18304069,0.0001093,2]
[419660751,1775262641536,-3239.18304069,0.0001093,2]
[419660752,1775262641545,-3239.18304069,0.0001093,2]
[419660753,1775262641555,-3239.18304069,0.0001093,2]
[419660754,1775262641564,-3239.18304069,0.0001093,2]
[419660755,1775262641573,-3239.18304069,0.0001093,2]
[419660756,1775262641582,-3239.18304069,0.0001093,2]
[419660757,1775262641591,-3239.18304069,0.0001093,2]
[419660758,1775262641600,-3239.18304069,0.0001093,2]
[419660759,1775262641609,-3239.18304069,0.0001093,2]
[419660760,1775262641618,-3239.18304069,0.0001093,2]
[419660761,1775262641627,-3239.18304069,0.0001093,2]
[419660762,1775262641637,-3239.18304069,0.0001093,2]
[419660763,1775262641648,-3239.18304069,0.0001093,2]
[419660764,1775262641659,-3239.18304069,0.0001093,2]
[419660765,1775262641668,-3239.18304069,0.0001093,2]
[419660766,1775262641680,-3239.18304069,0.0001093,2]
[419660767,1775262641689,-3239.18304069,0.0001093,2]
[419660768,1775262641699,-3239.18304069,0.0001093,2]
[419660769,1775262641708,-3239.18304069,0.0001093,2]
[419660770,1775262641720,-3239.18304069,0.0001093,2]
[419660771,1775262641730,-3198.69325267,0.0001093,2]
[419660772,1775262641739,-3198.69325267,0.0001093,2]
[419660773,1775262641748,-3198.69325267,0.0001093,2]
[419660774,1775262641758,-3198.69325267,0.0001093,2]
[419660775,1775262641767,-3198.69325267,0.0001093,2]
[419660776,1775262641777,-3198.69325267,0.0001093,2]
[419660777,1775262641786,-3198.69325267,0.0001093,2]
[419660778,1775262641795,-3198.69325267,0.0001093,2]
[419660779,1775262641804,-3198.69325267,0.0001093,2]
[419660780,1775262641813,-3198.69325267,0.0001093,2]
[419660781,1775262641822,-3198.69325267,0.0001093,2]
[419660782,1775262641832,-3198.69325267,0.0001093,2]
[419660783,1775262641842,-3198.69325267,0.0001093,2]
[419660784,1775262641852,-3198.69325267,0.0001093,2]
[419660785,1775262641861,-3198.69325267,0.0001093,2]
[419660786,1775262641870,-3198.69325267,0.0001093,2]
[419660787,1775262641880,-3198.69325267,0.0001093,2]
[419660788,1775262641889,-3198.69325267,0.0001093,2]
[419660789,1775262641898,-3198.69325267,0.0001093,2]
[419660790,1775262641907,-3198.69325267,0.0001093,2]
[419660791,1775262641917,-3198.69325267,0.0001093,2]
[419660792,1775262641926,-3198.69325267,0.0001093,2]
[419660793,1775262641935,-3198.69325267,0.0001093,2]
[419660794,1775262641946,-3198.69325262,0.0001093,2]
[419660795,1775262641957,-5604.042,0.0001093,2]
[419660796,1775262641967,-296.725,0.0001093,2]
[419660797,1775262641976,-160.51,0.0001093,2]
[419660798,1775262641987,-33024.725,0.00010931,2]
[419660799,1775262641996,-1000.0,0.00010931,2]
[419660800,1775262642006,-172.35105274,0.00010959,2]
[419660801,1775262642015,-169.5711122,0.00010973,2]
[419660802,1775262642023,-500.0,0.00010973,2]
[419660803,1775262642032,-500.0,0.00010973,2]
[419660804,1775262642042,-500.0,0.00010973,2]
[419660805,1775262642051,-500.0,0.00010973,2]
[419660806,1775262642060,-502.79307886,0.00010973,2]
[419660807,1775262642070,-500.0,0.00010973,2]
[419660808,1775262642079,-500.0,0.00010973,2]
[419660809,1775262642088,-10000.0,0.00011042,2]
[419660810,1775262642098,-218.07,0.00011045,2]
[419660811,1775262642107,-600.0,0.00011158,2]
[419660812,1775262642116,-600.0,0.00011158,2]
[419660813,1775262642125,-600.0,0.00011158,2]
[419660814,1775262642134,-600.0,0.00011158,2]
[419660815,1775262642143,-600.0,0.00011158,2]
[419660816,1775262642152,-408.0,0.00011417,2]
[419660817,1775262642162,-237.0,0.00011435,2]
[419660818,1775262642171,-151.0,0.0001144,2]
[419660819,1775262642180,-297.0,0.00011458,2]
[419660820,1775262642190,-161.0,0.00011471,2]
[419660821,1775262642199,-300.0,0.00011484,2]
[419660822,1775262642208,-5000.0,0.00011485,2]
[419660823,1775262642217,-250.0,0.00011485,2]
[419660824,1775262642226,-1658.86657149,0.00011485,2]
[419660825,1775262642235,-250.0,0.00011485,2]
[419660826,1775262642244,-1912.0,0.00011501,2]
[419660827,1775262642254,-2348.01,0.00011507,2]
[419660828,1775262642263,-1030.0,0.00011524,2]
[419660829,1775262642272,-793.0,0.00011557,2]
[419660830,1775262642281,-202.0,0.0001158,2]
[419660831,1775262642291,-480.0,0.00011593,2]
[419660832,1775262642300,-163.14,0.00011626,2]
[419660833,1775262642309,-178.0,0.00011749,2]
[419660835,1775262642318,-150.0,0.00011802,2]
[419660837,1775262642327,-265.10842309,0.00011818,2]
[419660839,1775262642337,-500.0,0.00011818,2]
[419660841,1775262642347,-153.7831879,0.00011914,2]
[419660843,1775262642356,-250.0,0.00011914,2]
[419660845,1775262642365,-188.92935304,0.00011914,2]
[419660847,1775262642374,-255.0,0.00011966,2]
[419660849,1775262642384,-280.0,0.00012008,2]
[419660850,1775262642393,-1680.0,0.00012019,2]
[419660851,1775262642402,-951.0,0.00012031,2]
[419660852,1775262642412,-542.0,0.00012488,2]
[419660853,1775262642421,-275.6739728,0.00012547,2]
[419660854,1775262642430,-1665.0,0.0001266,2]
[419660855,1775262642437,-242.0,0.0001266,2]
[419660856,1775262642447,-1261.0,0.00012686,2]
[419660857,1775262642456,-486.73995835,0.00012987,2]
[419660858,1775262642466,-250.0,0.00013,2]
[419660860,1775262642476,-300.0,0.00013103,2]
[419660862,1775262642485,-514.0,0.00013111,2]
[419660864,1775262642496,-720.0,0.00013221,2]
[419660866,1775262642506,-844.84976146,0.0001326,2]
[419660868,1775262642515,-377.0232494,0.0001326,2]
[419660870,1775262642524,-232.88589895,0.0001326,2]
[419660872,1775262642533,-528.88446186,0.0001326,2]
[419660874,1775262642542,-500.0,0.00013698,2]
[419660876,1775262642551,-500.0,0.00013698,2]
[419660878,1775262642560,-500.0,0.00013698,2]
[419660880,1775262642569,-500.0,0.00013698,2]
[419660882,1775262642579,-500.0,0.00013698,2]
[419660884,1775262642588,-500.0,0.00013698,2]
[419660886,1775262642597,-500.0,0.00013698,2]